fUSD/lending_fUSD_20250503
["ID","MTS","AMOUNT","RATE_DAILY","PERIOD"]
[359686437,1746251439016,-1000.0,0.00019571,2]
[359686438,1746251439026,-1000.0,0.00019571,2]
[359686439,1746251439035,-1000.0,0.00019571,2]
[359686440,1746251439044,-1000.0,0.00019571,2]
[359686441,1746251439052,-1000.0,0.00019571,2]
[359686442,1746251439062,-1000.0,0.00019571,2]
[359686443,1746251439071,-450.0,0.00019571,2]
[359686444,1746251439080,-450.0,0.00019571,2]
[359686445,1746251439089,-79.86456314,0.00019571,2]
[359686446,1746251439122,-370.13543686,0.00019571,2]
[359686447,1746251439131,-450.0,0.00019571,2]
[359686448,1746251439139,-450.0,0.00019571,2]
[359686449,1746251439149,-495.95636684,0.00019571,2]
[359686450,1746251439158,-450.0,0.00019571,2]
[359686451,1746251439167,-450.0,0.00019571,2]
[359686452,1746251439176,-450.0,0.00019571,2]
[359686453,1746251439186,-450.0,0.00019571,2]
[359686454,1746251439195,-450.0,0.00019571,2]
[359686455,1746251439204,-339.31234558,0.00019571,2]
[359686487,1746251440420,-110.68765442,0.00019571,2]
[359686489,1746251440429,-450.0,0.00019571,2]
[359686491,1746251440440,-680.98,0.00019571,2]
[359686493,1746251440450,-877.16,0.00019571,2]
[359686495,1746251440460,-453.17838982,0.00019571,2]
[359686497,1746251440469,-468.95,0.00019571,2]
[359686499,1746251440479,-450.0,0.00019571,2]
[359686501,1746251440489,-450.0,0.00019571,2]
[359686503,1746251440499,-450.0,0.00019571,2]
[359686505,1746251440509,-3769.97,0.00019571,2]
[359686507,1746251440518,-450.0,0.00019571,2]
[359686509,1746251440527,-450.0,0.00019571,2]
[359686511,1746251440536,-450.0,0.00019571,2]
[359686513,1746251440545,-448.11006714,0.00019571,2]
[359686515,1746251440555,-450.0,0.00019571,2]
[359686517,1746251440563,-450.0,0.00019571,2]
[359686519,1746251440572,-792.61,0.00019571,2]
[359686520,1746251440582,-450.0,0.00019571,2]
[359686522,1746251440591,-4790.64,0.00019571,2]
[359686524,1746251440601,-450.0,0.00019571,2]
[359686526,1746251440610,-450.0,0.00019571,2]
[359686528,1746251440619,-450.0,0.00019571,2]
[359686530,1746251440628,-3947.58,0.00019571,2]
[359686532,1746251440637,-450.0,0.00019571,2]
[359686534,1746251440648,-71708.03,0.00019571,2]
[359686536,1746251440657,-464.98,0.00019571,2]
[359686538,1746251440666,-450.0,0.00019571,2]
[359686540,1746251440675,-450.0,0.00019571,2]
[359686542,1746251440685,-509.62,0.00019571,2]
[359686543,1746251440694,-450.0,0.00019571,2]
[359686544,1746251440703,-450.0,0.00019571,2]
[359686545,1746251440712,-4244.02,0.00019571,2]
[359686546,1746251440722,-450.0,0.00019571,2]
[359686547,1746251440735,-24308.42,0.00019571,2]
[359686548,1746251440744,-450.0,0.00019571,2]
[359686550,1746251440753,-450.0,0.00019571,2]
[359686552,1746251440763,-450.0,0.00019571,2]
[359686554,1746251440774,-1599.29,0.00019571,2]
[359686555,1746251440783,-549.83,0.00019571,2]
[359686557,1746251440792,-93980.01,0.00019571,2]
[359686559,1746251440802,-450.0,0.00019571,2]
[359686561,1746251440811,-700.54,0.00019571,2]
[359686563,1746251440821,-11694.52,0.00019571,2]
[359686565,1746251440830,-481.45692124,0.00019571,2]
[359686567,1746251440839,-539.46,0.00019571,2]
[359686569,1746251440848,-450.0,0.00019571,2]
[359686570,1746251440858,-2012.33,0.00019571,2]
[359686572,1746251440867,-450.0,0.00019571,2]
[359686574,1746251440878,-1252.24,0.00019571,2]
[359686576,1746251440887,-624.38,0.00019571,2]
[359686578,1746251440896,-450.0,0.00019571,2]
[359686580,1746251440905,-500.0,0.00019571,2]
[359686582,1746251440914,-405.7034796,0.00019571,2]
[359686584,1746251440923,-500.0,0.00019571,2]
[359686586,1746251440933,-450.0,0.00019571,2]
[359686588,1746251440942,-580.4,0.00019571,2]
[359686590,1746251440951,-450.76,0.00019571,2]
[359686592,1746251440960,-450.0,0.00019571,2]
[359686594,1746251440969,-1741.86,0.00019571,2]
[359686596,1746251440978,-450.0,0.00019571,2]
[359686597,1746251440988,-450.0,0.00019571,2]
[359686599,1746251440997,-450.0,0.00019571,2]
[359686601,1746251441006,-781.41,0.00019571,2]
[359686603,1746251441016,-544.4,0.00019571,2]
[359686605,1746251441025,-2991.51,0.00019571,2]
[359686607,1746251441034,-450.0,0.00019571,2]
[359686609,1746251441043,-450.0,0.00019571,2]
[359686610,1746251441052,-450.0,0.00019571,2]
[359686612,1746251441061,-589.71,0.00019571,2]
[359686614,1746251441071,-603.67,0.00019571,2]
[359686616,1746251441081,-1169.47,0.00019571,2]
[359686618,1746251441090,-450.0,0.00019571,2]
[359686620,1746251441099,-2754.97,0.00019571,2]
[359686622,1746251441109,-450.0,0.00019571,2]
[359686624,1746251441118,-503.84,0.00019571,2]
[359686625,1746251441127,-657.81,0.00019571,2]
[359686627,1746251441136,-450.0,0.00019571,2]
[359686629,1746251441145,-450.0,0.00019571,2]
[359686631,1746251441154,-457.5,0.00019571,2]
[359686633,1746251441163,-450.0,0.00019571,2]
[359686635,1746251441172,-529.78928757,0.00019571,2]
[359686637,1746251441182,-450.0,0.00019571,2]
[359686639,1746251441191,-794.03,0.00019571,2]
[359686640,1746251441200,-595.92,0.00019571,2]
[359686642,1746251441210,-450.0,0.00019571,2]
[359686644,1746251441219,-801.65,0.00019571,2]
[359686645,1746251441229,-450.0,0.00019571,2]
[359686646,1746251441239,-492.53,0.00019571,2]
[359686647,1746251441248,-664.07,0.00019571,2]
[359686648,1746251441257,-450.0,0.00019571,2]
[359686649,1746251441267,-3865.82,0.00019571,2]
[359686650,1746251441276,-482.49,0.00019571,2]
[359686651,1746251441286,-450.0,0.00019571,2]
[359686652,1746251441295,-450.0,0.00019571,2]
[359686653,1746251441305,-467.62,0.00019571,2]
[359686654,1746251441314,-4413.23,0.00019571,2]
[359686655,1746251441324,-450.0,0.00019571,2]
[359686656,1746251441334,-450.0,0.00019572,2]
[359686657,1746251441343,-450.0,0.00019572,2]
[359686658,1746251441353,-450.0,0.00019572,2]
[359686659,1746251441363,-450.0,0.00019572,2]
[359686660,1746251441373,-461.58,0.00019572,2]
[359686661,1746251441382,-450.0,0.00019572,2]
[359686662,1746251441392,-450.0,0.00019572,2]
[359686663,1746251441401,-910.77,0.00019572,2]
[359686664,1746251441411,-450.0,0.00019572,2]
[359686665,1746251441420,-450.0,0.00019572,2]
[359686666,1746251441430,-450.0,0.00019572,2]
[359686667,1746251441440,-450.0,0.00019572,2]
[359686668,1746251441449,-450.0,0.00019572,2]
[359686669,1746251441459,-450.96282215,0.00019572,2]
[359686670,1746251441469,-450.0,0.00019572,2]
[359686671,1746251441478,-566.96,0.00019572,2]
[359686672,1746251441487,-1036.18,0.00019572,2]
[359686673,1746251441497,-450.0,0.00019572,2]
[359686674,1746251441508,-450.0,0.00019572,2]
[359686675,1746251441517,-584.55,0.00019572,2]
[359686676,1746251441527,-872.47,0.00019572,2]
[359686677,1746251441536,-450.0,0.00019572,2]
[359686678,1746251441546,-450.0,0.00019572,2]
[359686679,1746251441555,-1258.78,0.00019572,2]
[359686680,1746251441564,-450.0,0.00019572,2]
[359686681,1746251441574,-450.0,0.00019572,2]
[359686682,1746251441584,-463.72,0.00019572,2]
[359686683,1746251441593,-487.02448323,0.00019572,2]
[359686684,1746251441603,-450.0,0.00019572,2]
[359686685,1746251441612,-558.66,0.00019572,2]
[359686686,1746251441621,-450.0,0.00019572,2]
[359686687,1746251441631,-517.13,0.00019572,2]
[359686688,1746251441641,-450.04952577,0.00019572,2]
[359686689,1746251441650,-1447.82,0.00019572,2]
[359686690,1746251441660,-858.63,0.00019572,2]
[359686691,1746251441670,-626.89,0.00019572,2]
[359686692,1746251441679,-450.0,0.00019572,2]
[359686693,1746251441689,-756.4,0.00019572,2]
[359686694,1746251441698,-450.0,0.00019572,2]
[359686695,1746251441708,-440.0,0.00019572,2]
[359686696,1746251441717,-450.0,0.00019572,2]
[359686697,1746251441727,-450.0,0.00019572,2]
[359686698,1746251441738,-450.0,0.00019572,2]
[359686699,1746251441747,-450.0,0.00019572,2]
[359686700,1746251441757,-450.0,0.00019572,2]
[359686701,1746251441766,-450.0,0.00019572,2]
[359686702,1746251441775,-504.08102465,0.00019572,2]
[359686703,1746251441785,-699.0,0.00019572,2]
[359686704,1746251441794,-490.88189455,0.00019572,2]
[359686705,1746251441803,-450.0,0.00019572,2]
[359686706,1746251441813,-450.0,0.00019572,2]
[359686707,1746251441822,-663.36,0.00019572,2]
[359686708,1746251441832,-450.0,0.00019572,2]
[359686709,1746251441841,-542.13,0.00019572,2]
[359686710,1746251441850,-2179.48,0.00019572,2]
[359686711,1746251441859,-955.18,0.00019572,2]
[359686712,1746251441869,-1966.12,0.00019572,2]
[359686713,1746251441880,-1000.0,0.00019572,2]
[359686714,1746251441889,-1000.0,0.00019572,2]
[359686715,1746251441899,-1000.0,0.00019572,2]
[359686716,1746251441908,-1000.0,0.00019572,2]
[359686717,1746251441917,-1000.0,0.00019572,2]
[359686718,1746251441927,-1000.0,0.00019572,2]
[359686719,1746251441935,-1000.0,0.00019572,2]
[359686720,1746251441944,-1000.0,0.00019572,2]
[359686721,1746251441954,-1000.0,0.00019572,2]
[359686722,1746251441964,-1000.0,0.00019572,2]
[359686723,1746251441973,-1000.0,0.00019572,2]
[359686724,1746251441982,-1000.0,0.00019572,2]
[359686725,1746251441993,-1000.0,0.00019572,2]
[359686726,1746251442004,-1000.0,0.00019572,2]
[359686727,1746251442013,-1000.0,0.00019572,2]
[359686728,1746251442023,-1000.0,0.00019572,2]
[359686729,1746251442032,-1000.0,0.00019572,2]
[359686730,1746251442042,-1000.0,0.00019572,2]
[359686731,1746251442051,-1000.0,0.00019572,2]
[359686732,1746251442060,-1000.0,0.00019572,2]
[359686733,1746251442069,-1000.0,0.00019572,2]
[359686734,1746251442078,-1489.07015676,0.00019614,2]
[359686735,1746251442088,-2949.85963372,0.00019615,2]
[359686736,1746251442097,-1489.07015676,0.00019662,2]
[359686737,1746251442107,-2949.85963372,0.00019662,2]
[359686738,1746251442116,-999.0,0.00019671,2]
[359686739,1746251442126,-1489.07015676,0.00019709,2]
[359686740,1746251442135,-2949.85963372,0.0001971,2]
[359686741,1746251442146,-1489.07015676,0.00019757,2]
[359686742,1746251442155,-2949.85963372,0.00019757,2]
[359686743,1746251442165,-269.1165694,0.00019799,2]
[359686744,1746251442175,-1489.07015676,0.00019805,2]
[359686745,1746251442186,-2949.85963372,0.00019805,2]
[359686746,1746251442195,-151.0,0.00019831,2]
[359686747,1746251442205,-151.0,0.00019833,2]
[359686748,1746251442215,-668.65185757,0.00019833,2]
[359686749,1746251442224,-207.4,0.00019833,2]
[359686750,1746251442233,-450.0,0.00019844,2]
[359686751,1746251442242,-450.0,0.00019844,2]
[359686752,1746251442251,-450.0,0.00019845,2]
[359686753,1746251442261,-450.0,0.00019845,2]
[359686754,1746251442271,-450.0,0.00019845,2]
[359686755,1746251442281,-450.0,0.00019845,2]
[359686756,1746251442290,-526.41253838,0.00019845,2]
[359686757,1746251442300,-512.04018184,0.00019845,2]
[359686758,1746251442309,-450.0,0.00019845,2]
[359686759,1746251442319,-450.0,0.00019845,2]
[359686760,1746251442328,-680.98,0.00019845,2]
[359686761,1746251442337,-877.16,0.00019845,2]
[359686762,1746251442347,-468.95,0.00019845,2]
[359686763,1746251442356,-450.0,0.00019845,2]
[359686764,1746251442366,-450.0,0.00019845,2]
[359686765,1746251442375,-3769.97,0.00019845,2]
[359686766,1746251442384,-450.0,0.00019845,2]
[359686767,1746251442394,-450.0,0.00019845,2]
[359686768,1746251442403,-450.0,0.00019845,2]
[359686769,1746251442413,-450.0,0.00019845,2]
[359686770,1746251442422,-792.61,0.00019845,2]
[359686771,1746251442432,-450.0,0.00019845,2]
[359686772,1746251442441,-4790.64,0.00019845,2]
[359686773,1746251442451,-450.0,0.00019845,2]
[359686774,1746251442460,-480.6789781,0.00019845,2]
[359686775,1746251442469,-450.0,0.00019845,2]
[359686776,1746251442479,-3947.58,0.00019845,2]
[359686777,1746251442489,-450.0,0.00019845,2]
[359686778,1746251442499,-71708.03,0.00019845,2]
[359686779,1746251442508,-464.98,0.00019845,2]
[359686780,1746251442517,-450.0,0.00019845,2]
[359686781,1746251442526,-450.0,0.00019845,2]
[359686782,1746251442535,-509.62,0.00019845,2]
[359686783,1746251442545,-450.0,0.00019845,2]
[359686784,1746251442554,-450.0,0.00019845,2]
[359686785,1746251442563,-4244.02,0.00019845,2]
[359686786,1746251442572,-24308.42,0.00019845,2]
[359686787,1746251442581,-450.0,0.00019845,2]
[359686788,1746251442590,-450.0,0.00019845,2]
[359686789,1746251442599,-450.0,0.00019845,2]
[359686790,1746251442608,-1599.29,0.00019845,2]
[359686791,1746251442618,-549.83,0.00019845,2]
[359686792,1746251442627,-93980.01,0.00019845,2]
[359686793,1746251442636,-450.0,0.00019845,2]
[359686794,1746251442645,-700.54,0.00019845,2]
[359686795,1746251442654,-11694.52,0.00019845,2]
[359686796,1746251442663,-539.46,0.00019845,2]
[359686797,1746251442673,-450.0,0.00019845,2]
[359686798,1746251442682,-2012.33,0.00019845,2]
[359686799,1746251442691,-450.0,0.00019845,2]
[359686800,1746251442701,-1252.24,0.00019845,2]
[359686801,1746251442711,-999.0,0.00019845,2]
[359686802,1746251442720,-624.38,0.00019845,2]
[359686803,1746251442730,-450.0,0.00019845,2]
[359686804,1746251442742,-450.0,0.00019845,2]
[359686805,1746251442753,-580.4,0.00019845,2]
[359686806,1746251442762,-450.76,0.00019845,2]
[359686807,1746251442771,-450.0,0.00019845,2]
[359686808,1746251442782,-1741.86,0.00019845,2]
[359686809,1746251442792,-450.0,0.00019845,2]
[359686810,1746251442802,-450.0,0.00019845,2]
[359686811,1746251442813,-450.0,0.00019845,2]
[359686812,1746251442823,-781.41,0.00019845,2]
[359686813,1746251442834,-544.4,0.00019845,2]
[359686814,1746251442843,-2991.51,0.00019845,2]
[359686815,1746251442853,-450.0,0.00019845,2]
[359686816,1746251442864,-589.71,0.00019845,2]
[359686817,1746251442874,-603.67,0.00019845,2]
[359686818,1746251442883,-1169.47,0.00019845,2]
[359686819,1746251442892,-2754.97,0.00019845,2]
[359686820,1746251442902,-450.0,0.00019845,2]
[359686821,1746251442911,-503.84,0.00019845,2]
[359686822,1746251442920,-657.81,0.00019845,2]
[359686823,1746251442929,-450.0,0.00019845,2]
[359686824,1746251442938,-450.0,0.00019845,2]
[359686825,1746251442948,-450.0,0.00019845,2]
[359686826,1746251442960,-450.0,0.00019845,2]
[359686827,1746251442970,-794.03,0.00019845,2]
[359686828,1746251442980,-595.92,0.00019845,2]
[359686829,1746251442990,-354.35488265,0.00019845,2]
[359686830,1746251443002,-801.65,0.00019845,2]
[359686831,1746251443012,-450.0,0.00019845,2]
[359686832,1746251443021,-492.53,0.00019845,2]
[359686833,1746251443031,-664.07,0.00019845,2]
[359686834,1746251443040,-450.0,0.00019845,2]
[359686835,1746251443051,-3865.82,0.00019845,2]
[359686836,1746251443060,-482.49,0.00019845,2]
[359686837,1746251443069,-450.0,0.00019845,2]
[359686838,1746251443079,-450.0,0.00019845,2]
[359686839,1746251443089,-467.62,0.00019845,2]
[359686840,1746251443098,-4413.23,0.00019845,2]
[359686841,1746251443107,-450.0,0.00019845,2]
[359686842,1746251443116,-450.0,0.00019846,2]
[359686843,1746251443126,-450.0,0.00019846,2]
[359686844,1746251443136,-450.0,0.00019846,2]
[359686846,1746251443146,-450.0,0.00019846,2]
[359686848,1746251443156,-450.0,0.00019846,2]
[359686850,1746251443166,-461.58,0.00019846,2]
[359686851,1746251443176,-472.15560293,0.00019846,2]
[359686852,1746251443186,-910.77,0.00019846,2]
[359686853,1746251443196,-450.0,0.00019846,2]
[359686854,1746251443206,-365.0454029,0.00019846,2]
[359686855,1746251443216,-450.0,0.00019846,2]
[359686856,1746251443226,-450.0,0.00019846,2]
[359686857,1746251443236,-450.0,0.00019846,2]
[359686858,1746251443246,-450.0,0.00019846,2]
[359686859,1746251443255,-1036.18,0.00019846,2]
[359686860,1746251443264,-450.0,0.00019846,2]
[359686861,1746251443275,-450.0,0.00019846,2]
[359686862,1746251443284,-584.55,0.00019846,2]
[359686863,1746251443294,-872.47,0.00019846,2]
[359686864,1746251443304,-450.0,0.00019846,2]
[359686865,1746251443313,-450.0,0.00019846,2]
[359686866,1746251443323,-1258.78,0.00019846,2]
[359686867,1746251443333,-463.72,0.00019846,2]
[359686868,1746251443342,-450.0,0.00019846,2]
[359686869,1746251443352,-558.66,0.00019846,2]
[359686870,1746251443361,-450.0,0.00019846,2]
[359686871,1746251443371,-517.13,0.00019846,2]
[359686872,1746251443380,-1447.82,0.00019846,2]
[359686873,1746251443390,-858.63,0.00019846,2]
[359686874,1746251443400,-626.89,0.00019846,2]
[359686875,1746251443604,-450.0,0.00019846,2]
[359686876,1746251443614,-756.4,0.00019846,2]
[359686877,1746251443623,-450.0,0.00019846,2]
[359686878,1746251443633,-450.0,0.00019846,2]
[359686879,1746251443642,-450.0,0.00019846,2]
[359686880,1746251443652,-450.0,0.00019846,2]
[359686881,1746251443662,-450.0,0.00019846,2]
[359686882,1746251443671,-450.0,0.00019846,2]
[359686883,1746251443680,-450.0,0.00019846,2]
[359686884,1746251443690,-699.0,0.00019846,2]
[359686885,1746251443699,-356.92621628,0.00019846,2]
[359686886,1746251443708,-450.0,0.00019846,2]
[359686887,1746251443718,-663.36,0.00019846,2]
[359686888,1746251443728,-328.83609897,0.00019846,2]
[359686889,1746251443741,-542.13,0.00019846,2]
[359686890,1746251443751,-2179.48,0.00019846,2]
[359686891,1746251443760,-955.18,0.00019846,2]
[359686892,1746251443769,-1966.12,0.00019846,2]
[359686893,1746251443779,-1489.07015676,0.00019852,2]
[359686894,1746251443789,-2949.85963372,0.00019852,2]
[359686895,1746251443799,-12500.0,0.00019865,2]
[359686896,1746251443808,-12500.0,0.00019874,2]
[359686897,1746251443820,-12500.0,0.00019882,2]
[359686898,1746251443831,-2833.2142249,0.00019886,2]
[359686901,1746251443841,-151.0,0.00019891,2]
[359686903,1746251443852,-12500.0,0.00019891,2]
[359686904,1746251443862,-151.0,0.00019892,2]
[359686905,1746251443871,-151.0,0.00019893,2]
[359686906,1746251443881,-151.0,0.00019894,2]
[359686907,1746251443891,-151.0,0.00019896,2]
[359686908,1746251443900,-2780.94450003,0.000199,2]
[359686909,1746251443910,-664.8439768,0.000199,2]
[359686910,1746251443919,-2313.36641697,0.000199,2]
[359686911,1746251443930,-12500.0,0.000199,2]
[359686912,1746251443942,-7357.50131508,0.000199,2]
[359686913,1746251443951,-1489.07015676,0.000199,2]
[359686914,1746251443961,-2949.85963372,0.000199,2]
[359686915,1746251443971,-2132.0,0.000199,2]
[359686916,1746251443981,-259.41413433,0.000199,2]
[359686917,1746251443991,-4093.995,0.00019915,2]
[359686918,1746251444002,-323.067,0.00019915,2]
[359686919,1746251444012,-1000.0,0.00019959,2]
[359686920,1746251444021,-1000.0,0.00019959,2]
[359686921,1746251444031,-1000.0,0.00019959,2]
[359686922,1746251444040,-1000.0,0.00019959,2]
[359686923,1746251444050,-1000.0,0.00019959,2]
[359686924,1746251444058,-1000.0,0.00019959,2]
[359686925,1746251444068,-1000.0,0.00019959,2]
[359686926,1746251444078,-1000.0,0.00019959,2]
[359686927,1746251444087,-1000.0,0.00019959,2]
[359686928,1746251444097,-1000.0,0.00019959,2]
[359686929,1746251444106,-1000.0,0.00019959,2]
[359686930,1746251444116,-1000.0,0.00019959,2]
[359686931,1746251444126,-1000.0,0.00019959,2]
[359686932,1746251444137,-7357.50131507,0.0001996,2]
[359686933,1746251444147,-259.41413433,0.0001996,2]
[359686934,1746251444156,-794.43630907,0.00019961,2]
[359686935,1746251444166,-500.0,0.0001997,2]
[359686936,1746251444176,-500.0,0.0001997,2]
[359686937,1746251444185,-150.0,0.0001997,2]
[359686938,1746251444195,-150.0,0.0001997,2]
[359686939,1746251444204,-450.0,0.00019972,2]
[359686940,1746251444214,-450.0,0.00019972,2]
[359686941,1746251444224,-450.0,0.00019972,2]
[359686942,1746251444234,-450.0,0.00019972,2]
[359686943,1746251444244,-455.45,0.00019972,2]
[359686944,1746251444254,-450.0,0.00019972,2]
[359686945,1746251444264,-450.0,0.00019972,2]
[359686946,1746251444274,-450.0,0.00019972,2]
[359686947,1746251444283,-479.1,0.00019972,2]
[359686948,1746251444293,-3826.78,0.00019972,2]
[359686949,1746251444303,-865.97,0.00019972,2]
[359686950,1746251444313,-450.0,0.00019972,2]
[359686951,1746251444323,-450.0,0.00019972,2]
[359686952,1746251444333,-450.0,0.00019972,2]
[359686953,1746251444343,-1435.38,0.00019972,2]
[359686954,1746251444353,-450.0,0.00019972,2]
[359686955,1746251444363,-4695.29,0.00019972,2]
[359686956,1746251444372,-492.26,0.00019972,2]
[359686957,1746251444382,-24428.0,0.00019973,2]
[359686958,1746251444391,-162.45076163,0.00019973,2]
[359686959,1746251444401,-544.89074326,0.00019973,2]
[359686960,1746251444411,-500.0,0.00019973,2]
[359686961,1746251444420,-506.33875235,0.00019973,2]
[359686962,1746251444430,-502.58925245,0.00019973,2]
[359686963,1746251444439,-500.0,0.00019973,2]
[359686964,1746251444449,-532.23391832,0.00019973,2]
[359686965,1746251444459,-500.0,0.00019973,2]
[359686966,1746251444468,-500.0,0.00019973,2]
[359686967,1746251444477,-208.45448445,0.00019973,2]
[359686968,1746251444487,-959.0,0.00019973,2]
[359686969,1746251444496,-500.0,0.00019973,2]
[359686970,1746251444505,-500.0,0.00019973,2]
[359686971,1746251444515,-500.0,0.00019973,2]
[359686972,1746251444525,-500.0,0.00019973,2]
[359686973,1746251444535,-500.0,0.00019973,2]
[359686974,1746251444544,-500.0,0.00019973,2]
[359686975,1746251444553,-402.99682489,0.00019973,2]
[359686976,1746251444563,-500.0,0.00019973,2]
[359686977,1746251444572,-500.0,0.00019973,2]
[359686978,1746251444581,-503.89540493,0.00019973,2]
[359686979,1746251444591,-500.0,0.00019973,2]
[359686980,1746251444600,-228.28560537,0.00019973,2]
[359686981,1746251444609,-500.0,0.00019973,2]
[359686982,1746251444619,-150.0,0.00019973,2]
[359686983,1746251444628,-150.0,0.00019973,2]
[359686984,1746251444638,-150.0,0.00019973,2]
[359686985,1746251444647,-500.0,0.00019973,2]
[359686986,1746251444656,-500.0,0.00019973,2]
[359686987,1746251444666,-150.0,0.00019973,2]
[359686988,1746251444675,-500.0,0.00019973,2]
[359686989,1746251444684,-222.40857925,0.00019973,2]
[359686990,1746251444694,-500.0,0.00019973,2]
[359686991,1746251444703,-1233.29204468,0.00019976,2]
[359686992,1746251444712,-450.0,0.00019985,2]
[359686993,1746251444721,-450.0,0.00019985,2]
[359686994,1746251444732,-450.0,0.00019985,2]
[359686995,1746251444744,-450.0,0.00019985,2]
[359686996,1746251444753,-450.0,0.00019985,2]
[359686997,1746251444763,-526.83071518,0.00019985,2]
[359686998,1746251444773,-450.0,0.00019985,2]
[359686999,1746251444783,-450.0,0.00019985,2]
[359687000,1746251444793,-500.0,0.00019985,2]
[359687001,1746251444802,-450.0,0.00019985,2]
[359687002,1746251444813,-450.0,0.00019985,2]
[359687003,1746251444823,-450.0,0.00019985,2]
[359687004,1746251444833,-450.0,0.00019985,2]
[359687005,1746251444842,-562.78124099,0.00019985,2]
[359687006,1746251444852,-450.0,0.00019985,2]
[359687007,1746251444861,-450.0,0.00019985,2]
[359687008,1746251444870,-450.0,0.00019985,2]
[359687009,1746251444879,-450.0,0.00019985,2]
[359687010,1746251444889,-496.91925382,0.00019985,2]
[359687011,1746251444899,-450.0,0.00019985,2]
[359687012,1746251444908,-450.0,0.00019985,2]
[359687013,1746251444918,-1076.19,0.00019985,2]
[359687014,1746251444927,-450.0,0.00019985,2]
[359687015,1746251444938,-450.0,0.00019985,2]
[359687016,1746251444947,-450.0,0.00019985,2]
[359687017,1746251444964,-317.40863215,0.00019985,2]
[359687018,1746251444976,-450.0,0.00019985,2]
[359687019,1746251444986,-450.0,0.00019985,2]
[359687020,1746251444997,-998.56,0.00019985,2]
[359687021,1746251445007,-450.0,0.00019985,2]
[359687022,1746251445017,-450.0,0.00019985,2]
[359687023,1746251445027,-450.0,0.00019985,2]
[359687024,1746251445037,-450.0,0.00019985,2]
[359687025,1746251445049,-450.0,0.00019985,2]
[359687026,1746251445061,-450.0,0.00019985,2]
[359687027,1746251445072,-450.0,0.00019985,2]
[359687028,1746251445083,-506.66,0.00019985,2]
[359687029,1746251445093,-898.8,0.00019985,2]
[359687030,1746251445104,-450.0,0.00019985,2]
[359687031,1746251445114,-450.0,0.00019985,2]
[359687032,1746251445126,-1313.66,0.00019985,2]
[359687033,1746251445137,-450.0,0.00019985,2]
[359687034,1746251445148,-487.88,0.00019985,2]
[359687035,1746251445158,-531.49299216,0.00019985,2]
[359687036,1746251445169,-450.0,0.00019985,2]
[359687037,1746251445180,-450.0,0.00019985,2]
[359687038,1746251445191,-450.0,0.00019985,2]
[359687039,1746251445202,-14885.1055213,0.00019986,2]
[359687040,1746251445213,-363536.3418966,0.00019986,2]
[359687041,1746251445223,-43346.855667,0.00019986,2]
[359687042,1746251445233,-209326.4280952,0.00019986,2]
[359687043,1746251445243,-2438.9957646,0.00019986,2]
[359687044,1746251445253,-2044.7773043,0.00019986,2]
[359687045,1746251445263,-1650.558844,0.00019986,2]